bitfinex-derivatives/quotes_BNBF0:USTF0_20250630
["timestamp","ask_amount","ask_price","bid_price","bid_amount"]
[1751264412875,0.26549685,655.94,655.52,2.45]
[1751264419083,3.8144389,655.89,655.52,2.45]
[1751264420681,0.26549685,655.94,655.52,2.45]
[1751264422788,0.26549685,655.94,655.53,3.544]
[1751264430195,3.8144389,655.88,655.53,3.544]
[1751264430992,3.8144389,655.88,655.53,1.6360296]
[1751264433601,3.8144389,655.88,655.54,2.348]
[1751264433796,3.8144389,655.88,655.54,1.39401484]
[1751264434796,0.26549685,655.94,655.54,1.39401484]
[1751264456616,0.26549685,655.94,655.55,3.269]
[1751264458416,3.8144389,655.91,655.55,3.269]
[1751264464620,3.8144389,655.89,655.55,3.269]
[1751264466920,3.8144389,655.89,655.55,0.8846829]
[1751264467417,3.8144389,655.88,655.55,0.8846829]
[1751264468320,0.26549685,655.94,655.55,0.8846829]
[1751264468321,3.8144389,655.91,655.55,0.8846829]
[1751264471926,0.26549685,655.94,655.55,0.8846829]
[1751264474629,0.26549685,655.94,655.5,10.977]
[1751264491042,0.26549685,655.94,655.51,2.939]
[1751264506948,0.26549685,655.94,655.52,3.391]
[1751264508750,3.8144389,655.92,655.52,3.391]
[1751264510954,3.8144389,655.93,655.52,3.391]
[1751264513553,0.26549685,655.94,655.52,3.391]
[1751264514758,4.07993575,655.94,655.52,3.391]
[1751264515663,4.07993575,655.94,655.53,2.94]
[1751264516059,3.8144389,655.93,655.53,2.94]
[1751264521064,0.26549685,655.94,655.53,2.94]
[1751264525768,0.26549685,655.94,655.54,3.68]
[1751264528274,0.26549685,655.94,655.55,3.275]
[1751264543287,0.26549685,655.94,655.56,2.624]
[1751264545786,0.26549685,655.94,655.57,2.523]
[1751264560900,0.26549685,655.94,655.56,2.624]
[1751264565607,0.26549685,655.94,655.31,3.485]
[1751264568508,0.26549685,655.94,655.32,2.808]
[1751264586625,3.8144389,656.79,655.32,2.808]
[1751264586826,0.26541586,655.79,655.32,2.808]
[1751264587122,3.8144389,656.75,655.32,2.808]
[1751264587326,0.26541181,655.68,655.32,2.808]
[1751264587626,3.8144389,656.66,655.28,2.898]
[1751264588626,3.8144389,656.68,655.28,2.898]
[1751264588924,0.26542901,656.32,655.28,2.898]
[1751264597032,0.26542901,656.32,655.29,3.792]
[1751264598131,0.26542901,656.32,655.3,2.454]
[1751264605138,0.26542901,656.32,655.31,3.069]
[1751264605840,0.26542901,656.32,655.32,2.001]
[1751264607641,0.26542901,656.32,655.33,3.127]
[1751264611544,0.26542901,656.32,655.34,3.026]
[1751264622148,0.26542901,656.32,655.35,3.038]
[1751264622547,0.26542901,656.32,655.36,2.001]
[1751264626556,0.26542901,656.32,655.37,3.158]
[1751264626755,3.8144389,656.29,655.37,3.158]
[1751264627454,3.8144389,656.28,655.37,3.158]
[1751264628756,0.26542901,656.32,655.37,3.158]
[1751264632357,0.26542901,656.32,655.38,2.928]
[1751264632852,0.26542901,656.32,655.39,3.011]
[1751264637056,0.26542901,656.32,655.4,2.001]
[1751264637660,0.26542901,656.32,655.41,3.557]
[1751264648073,0.26542901,656.32,655.42,2.595]
[1751264649174,3.8144389,656.21,655.42,2.595]
[1751264649673,3.8144389,656.2,655.42,2.595]
[1751264650270,3.8144389,656.21,655.42,2.595]
[1751264650774,3.8144389,656.23,655.42,2.595]
[1751264651372,0.26542901,656.32,655.42,2.595]
[1751264653472,0.26542901,656.32,655.43,3.563]
[1751264656872,0.26542901,656.32,655.44,2.426]
[1751264661677,0.26542901,656.32,655.45,3.654]
[1751264665580,3.8144389,656.27,655.45,3.654]
[1751264666574,3.8144389,656.25,655.45,3.654]
[1751264667880,3.8144389,656.25,655.46,2.0]
[1751264668676,3.8144389,656.25,655.47,2.543]
[1751264669277,3.8144389,656.25,655.48,2.726]
[1751264669580,3.8144389,656.17,655.48,2.726]
[1751264670781,3.8144389,656.13,655.48,2.726]
[1751264674284,3.8144389,656.27,655.48,2.726]
[1751264675383,3.8144389,656.26,655.49,3.861]
[1751264675884,0.26542901,656.32,655.49,3.861]
[1751264676084,0.26542901,656.32,655.5,2.589]
[1751264683690,0.26542901,656.32,655.51,2.0]
[1751264684186,3.8144389,656.27,655.51,2.0]
[1751264684894,3.8144389,656.27,655.52,2.738]
[1751264685692,3.8144389,656.27,655.53,3.772]
[1751264685896,3.8144389,656.15,655.53,3.772]
[1751264686899,3.8144389,656.28,655.53,3.772]
[1751264688896,3.8144389,656.27,655.53,3.772]
[1751264691000,3.8144389,656.26,655.53,3.772]
[1751264691594,0.26542901,656.32,655.53,3.772]
[1751264695404,0.26542901,656.32,655.54,3.573]
[1751264696699,0.26542901,656.32,655.55,3.008]
[1751264702009,0.26542901,656.32,655.56,2.0]
[1751264702206,0.26542901,656.32,655.56,4.891]
[1751264705610,0.26542901,656.32,655.57,3.088]
[1751264712818,0.26542901,656.32,655.58,3.446]
[1751264723426,4.07986791,656.32,655.58,3.446]
[1751264724026,0.26542901,656.32,655.58,3.446]
[1751264724832,0.26542901,656.32,655.59,3.813]
[1751264726329,0.26542901,656.32,655.6,6.52]
[1751264729234,0.26542901,656.32,655.61,2.0]
[1751264731336,0.26542901,656.32,655.62,3.856]
[1751264733836,3.8144389,656.26,655.62,3.856]
[1751264734331,0.26542901,656.32,655.62,3.856]
[1751264738441,0.26542901,656.32,655.63,2.489]
[1751264743743,3.8144389,656.3,655.63,2.489]
[1751264744344,3.8144389,656.15,655.64,3.611]
[1751264745747,3.8144389,656.15,655.65,3.068]
[1751264747450,3.8144389,656.16,655.65,3.068]
[1751264748052,3.8144389,656.14,655.65,3.068]
[1751264748453,3.8144389,656.15,655.65,3.068]
[1751264749054,3.8144389,656.14,655.65,3.068]
[1751264749649,3.8144389,656.16,655.65,3.068]
[1751264752156,3.8144389,656.14,655.65,3.068]
[1751264752757,3.8144389,656.14,655.66,2.0]
[1751264753159,3.8144389,656.13,655.66,2.0]
[1751264756362,3.8144389,656.23,655.66,2.0]
[1751264756865,3.8144389,656.22,655.66,2.0]
[1751264757061,3.8144389,656.22,655.67,3.66]
[1751264757365,3.8144389,656.21,655.67,3.66]
[1751264758262,3.8144389,656.21,655.68,2.578]
[1751264758862,3.8144389,656.21,655.69,3.541]
[1751264759366,3.8144389,656.2,655.69,3.541]
[1751264760066,0.26542901,656.32,655.69,3.541]
[1751264768277,0.26542901,656.32,655.7,2.427]
[1751264771074,0.26542901,656.32,655.7,5.281]
[1751264772378,0.26542901,656.32,655.71,3.812]
[1751264775778,0.26542901,656.32,655.72,2.832]
[1751264788790,3.8144389,656.85,655.72,2.832]
[1751264789090,0.26534705,656.18,655.72,2.832]
[1751264789294,3.8144389,656.85,655.72,2.832]
[1751264789594,0.26534705,656.07,655.72,2.832]
[1751264789796,3.8144389,656.85,655.72,2.832]
[1751264790195,3.8144389,656.83,655.72,2.832]
[1751264790796,3.8144389,656.83,655.73,3.22]
[1751264791095,0.26534907,656.56,655.73,3.22]
[1751264797899,0.26534907,656.56,655.74,3.881]
[1751264798699,0.26534907,656.56,655.75,3.092]
[1751264799300,0.26534907,656.56,655.75,6.904]
[1751264803803,3.8144389,656.49,655.76,2.616]
[1751264806900,0.26534907,656.56,655.76,2.616]
[1751264806901,3.8144389,656.47,655.76,2.616]
[1751264811210,3.8144389,656.52,655.76,2.616]
[1751264813108,3.8144389,656.51,655.76,2.616]
[1751264815712,3.8144389,656.5,655.76,2.616]
[1751264816213,3.8144389,656.51,655.76,2.616]
[1751264817417,3.8144389,656.42,655.76,2.616]
[1751264818617,3.8144389,656.4,655.76,2.616]
[1751264818914,3.8144389,656.41,655.76,2.616]
[1751264819913,3.8144389,656.39,655.76,2.616]
[1751264820712,3.8144389,656.39,655.75,6.904]
[1751264820913,3.8144389,656.28,655.75,6.904]
[1751264822416,3.8144389,656.28,655.75,10.495]
[1751264822617,3.8144389,656.28,655.76,3.427]
[1751264824116,3.8144389,656.45,655.76,3.427]
[1751264824616,3.8144389,656.44,655.76,3.427]
[1751264826118,3.8144389,656.42,655.76,3.427]
[1751264826519,3.8144389,656.42,655.77,3.481]
[1751264828823,3.8144389,656.41,655.77,3.481]
[1751264829423,3.8144389,656.41,655.78,3.056]
[1751264832926,3.8144389,656.45,655.78,3.056]
[1751264834025,3.8144389,656.3,655.78,3.056]
[1751264835124,3.8144389,656.31,655.78,3.056]
[1751264835527,3.8144389,656.3,655.78,3.056]
[1751264836724,3.8144389,656.34,655.78,3.056]
[1751264840229,3.8144389,656.34,655.79,2.612]
[1751264841231,3.8144389,656.33,655.79,2.612]
[1751264841733,3.8144389,656.3,655.79,2.612]
[1751264842230,3.8144389,656.31,655.79,2.612]
[1751264842831,3.8144389,656.24,655.79,2.612]
[1751264844935,3.8144389,656.23,655.79,2.612]
[1751264846433,3.8144389,656.17,655.79,2.612]
[1751264846933,3.8144389,656.15,655.79,0.6360551]
[1751264847431,3.8144389,656.18,655.79,0.6360551]
[1751264848036,3.8144389,656.17,655.79,0.6360551]
[1751264848234,3.8144389,656.17,655.8,3.084]
[1751264851137,3.8144389,656.16,655.8,3.084]
[1751264852540,3.8144389,656.16,655.81,3.942]
[1751264852738,3.8144389,656.24,655.81,3.942]
[1751264854343,0.26534907,656.56,655.81,3.942]
[1751264864250,3.8144389,656.52,655.81,3.942]
[1751264864751,3.8144389,656.51,655.81,3.942]
[1751264867248,3.8144389,656.5,655.81,3.942]
[1751264867748,3.8144389,656.51,655.81,3.942]
[1751264868350,3.8144389,656.5,655.81,3.942]
[1751264871954,3.8144389,656.31,655.81,3.942]
[1751264874757,3.8144389,656.31,655.82,2.62]
[1751264876660,3.8144389,656.33,655.82,2.62]
[1751264877260,3.8144389,656.34,655.82,2.62]
[1751264877656,3.8144389,656.33,655.82,2.62]
[1751264878857,3.8144389,656.3,655.82,2.62]
[1751264879758,3.8144389,656.31,655.82,2.62]
[1751264880861,3.8144389,656.29,655.82,2.62]
[1751264881960,3.8144389,656.26,655.82,2.62]
[1751264882358,3.8144389,656.31,655.82,2.62]
[1751264886067,3.8144389,656.3,655.82,2.62]
[1751264889169,3.8144389,656.31,655.82,2.62]
[1751264889669,3.8144389,656.3,655.82,2.62]
[1751264891269,3.8144389,656.22,655.82,2.62]
[1751264891772,3.8144389,656.27,655.82,2.62]
[1751264892472,3.8144389,656.2,655.82,0.6669372]
[1751264892865,3.8144389,656.23,655.82,0.6669372]
[1751264893369,3.8144389,656.24,655.82,0.6669372]
[1751264895972,3.8144389,656.23,655.82,0.6669372]
[1751264896476,3.8144389,656.24,655.82,0.6669372]
[1751264899679,3.8144389,656.23,655.82,0.6669372]
[1751264901679,3.8144389,656.18,655.82,0.6669372]
[1751264902976,3.8144389,656.18,655.82,0.10781325]
[1751264904781,3.8144389,656.18,655.75,3.786]
[1751264906876,3.8144389,656.32,655.75,3.786]
[1751264907077,3.8144389,656.32,655.76,2.493]
[1751264909082,3.8144389,656.33,655.76,2.493]
[1751264909482,3.8144389,656.34,655.76,2.493]
[1751264913686,3.8144389,656.35,655.76,2.493]
[1751264914189,3.8144389,656.43,655.77,2.61]
[1751264916388,3.8144389,656.35,655.77,2.61]
[1751264917592,3.8144389,656.41,655.77,2.61]
[1751264919097,3.8144389,656.37,655.77,2.61]
[1751264922293,0.26534907,656.56,655.77,2.61]
[1751264922294,3.8144389,656.39,655.77,2.61]
[1751264923700,3.8144389,656.38,655.77,2.61]
[1751264924201,3.8144389,656.3,655.77,2.61]
[1751264925801,3.8144389,656.31,655.77,2.61]
[1751264927401,3.8144389,656.23,655.77,2.61]
[1751264928403,3.8144389,656.23,655.78,3.475]
[1751264929000,3.8144389,656.25,655.78,3.475]
[1751264932005,3.8144389,656.19,655.78,3.475]
[1751264938312,3.8144389,656.25,655.78,3.475]
[1751264941514,3.8144389,656.45,655.78,3.475]
[1751264945214,3.8144389,656.5,655.78,3.475]
[1751264946214,3.8144389,656.49,655.78,3.475]
[1751264948115,3.8144389,656.49,655.79,3.049]
[1751264948319,3.8144389,656.47,655.79,3.049]
[1751264949321,3.8144389,656.53,655.79,3.049]
[1751264950821,0.26534907,656.56,655.79,3.049]
[1751264951317,3.8144389,656.52,655.79,3.049]
[1751264952518,3.8144389,656.51,655.79,3.049]
[1751264953021,3.8144389,656.51,655.8,4.097]
[1751264955122,3.8144389,656.48,655.8,4.097]
[1751264957621,3.8144389,656.53,655.8,4.097]
[1751264959225,3.8144389,656.46,655.8,4.097]
[1751264960926,3.8144389,656.38,655.8,4.097]
[1751264961928,3.8144389,656.4,655.8,4.097]
[1751264965929,3.8144389,656.4,655.79,3.049]
[1751264966130,3.8144389,656.51,655.79,3.049]
[1751264967133,3.8144389,656.51,655.8,3.445]
[1751264967528,3.8144389,656.46,655.8,3.445]
[1751264969033,3.8144389,656.48,655.81,4.121]
[1751264970734,0.26534907,656.56,655.81,4.121]
[1751264973736,0.26534907,656.56,655.82,3.98]
[1751264980639,3.8144389,656.54,655.82,3.98]
[1751264982836,3.8144389,656.53,655.82,3.98]
[1751264984240,3.8144389,656.47,655.82,3.98]
[1751264984838,3.8144389,656.24,655.81,4.121]
[1751264986042,3.8144389,656.24,655.8,3.445]
[1751264987443,3.8144389,656.33,655.8,3.445]
[1751264988144,0.26534907,656.56,655.8,3.445]
[1751264988546,0.26534907,656.56,655.81,2.991]
[1751264991148,3.8144389,656.78,655.81,2.991]
[1751264991352,0.26536323,656.38,655.81,2.991]
[1751264991553,3.8144389,656.78,655.81,2.991]
[1751264991952,0.26536931,656.24,655.81,2.991]
[1751264992150,3.8144389,656.78,655.81,2.991]
[1751264992452,0.26536931,656.14,655.81,2.991]
[1751264992650,3.8144389,656.78,655.81,2.991]
[1751264992855,0.26536931,656.06,655.81,2.991]
[1751264993057,3.8144389,656.78,655.81,2.991]
[1751264993454,0.26536931,656.0,655.81,2.991]
[1751264993658,3.8144389,656.79,655.81,2.991]
[1751264993952,0.26536931,655.96,655.81,2.991]
[1751264994157,3.8144389,656.79,655.81,2.991]
[1751264994452,0.26536829,655.93,655.81,2.991]
[1751264994655,3.8144389,656.79,655.81,2.991]
[1751264994957,0.26536829,655.91,655.81,2.991]
[1751264995154,3.8144389,656.79,655.81,2.991]
[1751264995457,0.26536829,655.89,655.81,2.991]
[1751264995657,3.8144389,656.78,655.81,2.991]
[1751264995858,0.26536829,655.88,655.81,2.991]
[1751264996360,3.8144389,656.78,655.81,2.991]
[1751264997356,0.26536931,656.54,655.81,2.991]
[1751264998260,3.8144389,656.33,655.81,2.991]
[1751264999256,3.8144389,656.32,655.81,2.991]
[1751265000255,3.8144389,656.33,655.81,2.991]
[1751265000860,3.8144389,656.3,655.81,2.991]
[1751265002061,3.8144389,656.31,655.81,2.991]
[1751265004759,3.8144389,656.31,655.81,0.7711204]
[1751265004964,3.8144389,656.23,655.81,0.7711204]
[1751265005562,3.8144389,656.16,655.81,0.7711204]
[1751265007268,3.8144389,656.36,655.81,0.7711204]
[1751265008367,3.8144389,656.52,655.81,0.7711204]
[1751265009163,3.8144389,656.53,655.81,0.7711204]
[1751265010567,3.8144389,656.53,655.78,6.714]
[1751265011264,0.26536931,656.54,655.78,6.714]
[1751265014370,0.26536931,656.54,655.78,3.103]
[1751265015767,0.26536931,656.54,655.79,3.138]
[1751265016667,0.26536931,656.54,655.8,3.77]
[1751265017571,3.8144389,656.52,655.8,3.77]
[1751265018172,3.8144389,656.48,655.8,3.77]
[1751265019168,3.8144389,656.51,655.8,3.77]
[1751265020369,3.8144389,656.49,655.8,3.77]
[1751265020669,3.8144389,656.5,655.8,3.77]
[1751265021473,3.8144389,656.47,655.8,3.77]
[1751265022971,3.8144389,656.48,655.8,3.77]
[1751265023373,3.8144389,656.49,655.8,3.77]
[1751265023769,3.8144389,656.48,655.8,3.77]
[1751265024269,3.8144389,656.38,655.8,3.77]
[1751265024974,3.8144389,656.32,655.8,3.77]
[1751265025472,3.8144389,656.19,655.81,3.436]
[1751265025871,3.8144389,656.25,655.81,3.436]
[1751265026474,5.3402144,656.53,655.81,3.436]
[1751265027276,5.60558371,656.54,655.81,3.436]
[1751265027477,3.8144389,656.31,655.81,3.436]
[1751265027978,3.8144389,656.29,655.81,3.436]
[1751265029075,3.8144389,656.31,655.81,3.436]
[1751265031573,3.8144389,656.33,655.81,3.436]
[1751265034175,3.8144389,656.44,655.81,3.436]
[1751265035280,3.8144389,656.45,655.81,3.436]
[1751265036782,3.8144389,656.41,655.81,3.436]
[1751265037282,3.8144389,656.4,655.81,3.436]
[1751265038386,3.8144389,656.41,655.81,3.436]
[1751265039583,3.8144389,656.4,655.81,3.436]
[1751265040990,3.8144389,656.39,655.81,3.436]
[1751265041589,3.8144389,656.38,655.81,3.436]
[1751265042589,3.8144389,656.37,655.81,3.436]
[1751265043594,3.8144389,656.38,655.81,3.436]
[1751265044194,3.8144389,656.25,655.81,3.436]
[1751265045290,3.8144389,656.22,655.81,3.436]
[1751265045692,3.8144389,656.21,655.81,3.436]
[1751265047193,3.8144389,656.2,655.81,3.436]
[1751265047796,3.8144389,656.18,655.81,3.436]
[1751265048296,3.8144389,656.26,655.82,2.743]
[1751265049697,3.8144389,656.26,655.83,2.739]
[1751265053504,3.8144389,656.24,655.83,2.739]
[1751265054504,3.8144389,656.25,655.83,2.739]
[1751265055106,3.8144389,656.27,655.83,2.739]
[1751265057205,3.8144389,656.24,655.83,2.739]
[1751265057913,3.8144389,656.24,655.82,2.6209357]
[1751265058106,3.8144389,656.15,655.82,2.6209357]
[1751265058411,3.8144389,656.15,655.81,3.436]
[1751265059210,5.3402144,656.37,655.81,3.436]
[1751265059211,3.8144389,656.14,655.81,3.436]
[1751265059709,3.8144389,656.19,655.81,3.436]
[1751265060812,3.8144389,656.2,655.81,3.436]
[1751265062110,3.8144389,656.2,655.82,1.656]
[1751265063415,3.8144389,656.19,655.82,1.656]
[1751265064014,3.8144389,656.21,655.82,1.656]
[1751265064512,3.8144389,656.2,655.82,1.656]
[1751265064914,3.8144389,656.17,655.82,1.656]
[1751265069218,3.8144389,656.18,655.82,1.656]
[1751265069618,3.8144389,656.21,655.82,1.656]
[1751265070614,3.8144389,656.2,655.82,1.656]
[1751265071722,3.8144389,656.25,655.82,1.656]
[1751265072319,3.8144389,656.27,655.82,1.656]
[1751265073024,3.8144389,656.27,655.83,3.6]
[1751265073924,3.8144389,656.26,655.83,3.6]
[1751265077920,3.8144389,656.4,655.83,3.6]
[1751265078925,0.26536931,656.54,655.83,3.6]
[1751265085430,0.26536931,656.54,655.84,1.655]
[1751265089529,3.8144389,656.51,655.84,1.655]
[1751265090532,3.8144389,656.5,655.84,1.655]
[1751265091529,3.8144389,656.32,655.84,1.655]
[1751265094134,3.8144389,656.51,655.84,1.655]
[1751265095733,3.8144389,656.53,655.84,1.655]
[1751265097733,0.26536931,656.54,655.84,1.655]
[1751265101935,3.8144389,656.47,655.84,1.655]
[1751265102937,3.8144389,656.46,655.84,1.655]
[1751265103432,3.8144389,656.48,655.84,1.655]
[1751265104137,3.8144389,656.41,655.84,1.655]
[1751265104431,3.8144389,656.41,655.83,3.6]
[1751265105033,3.8144389,656.46,655.83,3.6]
[1751265105534,3.8144389,656.45,655.83,3.6]
[1751265107143,3.8144389,656.49,655.84,1.654]
[1751265107743,3.8144389,656.46,655.84,1.654]
[1751265108142,3.8144389,656.47,655.84,1.654]
[1751265109241,3.8144389,656.45,655.84,1.654]
[1751265110347,3.8144389,656.5,655.84,1.654]
[1751265111246,3.8144389,656.48,655.84,1.654]
[1751265113346,3.8144389,656.46,655.84,1.654]
[1751265114846,3.8144389,656.41,655.84,1.654]
[1751265117150,3.8144389,656.37,655.84,1.654]
[1751265118155,3.8144389,656.34,655.84,1.654]
[1751265118653,3.8144389,656.37,655.84,1.654]
[1751265120255,3.8144389,656.29,655.84,1.654]
[1751265120552,3.8144389,656.3,655.84,1.654]
[1751265121356,3.8144389,656.29,655.84,1.654]
[1751265122756,3.8144389,656.35,655.84,1.654]
[1751265123255,3.8144389,656.38,655.84,1.654]
[1751265124764,3.8144389,656.36,655.84,1.654]
[1751265126967,3.8144389,656.35,655.84,1.654]
[1751265127168,3.8144389,656.35,655.83,3.6]
[1751265127463,3.8144389,656.34,655.83,3.6]
[1751265128465,0.26536931,656.54,655.83,3.6]
[1751265129568,0.26536931,656.54,655.84,1.653]
[1751265138372,3.8144389,656.25,655.84,1.653]
[1751265138872,3.8144389,656.42,655.84,1.653]
[1751265139575,3.8144389,656.41,655.84,1.653]
[1751265145176,3.8144389,656.39,655.84,1.653]
[1751265145680,3.8144389,656.4,655.84,1.653]
[1751265146682,3.8144389,656.39,655.84,1.653]
[1751265147780,0.26536931,656.54,655.84,1.653]
[1751265157690,3.8144389,656.41,655.84,1.653]
[1751265159284,3.8144389,656.43,655.84,1.653]
[1751265159786,3.8144389,656.43,655.7,4.061]
[1751265161284,3.8144389,656.45,655.7,4.061]
[1751265164091,3.8144389,656.3,655.7,4.061]
[1751265164396,3.8144389,656.3,655.56,0.413]
[1751265164992,3.8144389,656.29,655.56,0.413]
[1751265166098,3.8144389,656.48,655.56,0.413]
[1751265167098,4.07980821,656.54,655.57,3.006]
[1751265168694,3.8144389,656.47,655.57,3.006]
[1751265169196,3.8144389,656.48,655.57,3.006]
[1751265171495,3.8144389,656.47,655.57,3.006]
[1751265173402,3.8144389,656.46,655.57,3.006]
[1751265173897,3.8144389,656.47,655.57,3.006]
[1751265174498,3.8144389,656.45,655.58,3.003]
[1751265176101,3.8144389,656.34,655.58,3.003]
[1751265177302,3.8144389,656.22,655.58,3.003]
[1751265178799,3.8144389,656.19,655.58,3.003]
[1751265179699,3.8144389,656.23,655.58,3.003]
[1751265180404,3.8144389,656.22,655.58,3.003]
[1751265184104,3.8144389,656.18,655.58,3.003]
[1751265184705,3.8144389,656.17,655.58,3.003]
[1751265185707,3.8144389,656.19,655.58,3.003]
[1751265187708,3.8144389,656.2,655.58,3.003]
[1751265189706,3.8144389,656.14,655.58,3.003]
[1751265192510,3.8144389,656.12,655.58,3.003]
[1751265194513,5.3402144,656.33,655.58,3.003]
[1751265195210,3.8144389,656.42,655.58,3.003]
[1751265195512,3.8144389,656.41,655.58,3.003]
[1751265197016,3.8144389,656.42,655.58,3.003]
[1751265197617,3.8144389,656.44,655.58,3.003]
[1751265197813,0.26541282,656.22,655.58,3.003]
[1751265206517,0.26541282,656.22,655.59,3.004]
[1751265209420,0.26541282,656.22,655.6,0.62]
[1751265211133,3.8144389,656.19,655.61,3.813]
[1751265211628,3.8144389,656.18,655.61,3.813]
[1751265213427,3.8144389,656.12,655.61,3.813]
[1751265213827,0.26541282,656.22,655.61,3.813]
[1751265222138,0.26541282,656.22,655.62,3.739]
[1751265222338,0.26541282,656.22,655.62,6.743]
[1751265223437,0.26541282,656.22,655.63,3.022]
[1751265224335,3.8144389,656.19,655.63,3.022]
[1751265225144,3.8144389,656.18,655.63,3.022]
[1751265230544,3.8144389,656.18,655.64,0.62]
[1751265231444,3.8144389,656.2,655.64,0.62]
[1751265231944,0.26541282,656.22,655.64,0.62]
[1751265235950,0.26541282,656.22,655.65,2.895]
[1751265240951,0.26541282,656.22,655.66,3.965]
[1751265246156,0.26541282,656.22,655.67,3.812]
[1751265247760,0.26541282,656.22,655.68,2.988]
[1751265256168,0.26541282,656.22,655.69,2.634]
[1751265257372,0.26541282,656.22,655.7,0.62]
[1751265258974,0.26541282,656.22,655.7,3.705]
[1751265270482,0.26541282,656.22,655.7,3.085]
[1751265279995,0.26541282,656.22,655.69,2.634]
[1751265284094,3.8144389,656.16,655.69,2.634]
[1751265284498,3.8144389,656.17,655.69,2.634]
[1751265284995,3.8144389,656.16,655.69,2.634]
[1751265285594,3.8144389,656.15,655.69,2.634]
[1751265286099,3.8144389,656.14,655.69,2.634]
[1751265286300,3.8144389,656.14,655.7,3.061]
[1751265287496,3.8144389,656.14,655.71,4.294]
[1751265288299,3.8144389,656.16,655.71,4.294]
[1751265290600,3.8144389,656.17,655.71,4.294]
[1751265291405,3.8144389,656.1,655.71,4.294]
[1751265292004,0.26541282,656.22,655.71,4.294]
[1751265292005,3.8144389,656.11,655.71,4.294]
[1751265292501,3.8144389,656.09,655.71,4.294]
[1751265295110,3.8144389,656.16,655.71,4.294]
[1751265295606,0.26541282,656.22,655.71,4.294]
[1751265300808,4.07985172,656.22,655.72,3.699]
[1751265302907,0.26541282,656.22,655.72,3.699]
[1751265320725,3.8144389,656.15,655.72,3.699]
[1751265321123,0.26541282,656.22,655.72,3.699]
[1751265328042,0.26541282,656.22,655.73,3.133]
[1751265340048,0.26541282,656.22,655.72,3.699]
[1751265341962,0.26541282,656.22,655.73,4.283]
[1751265356262,0.26541282,656.22,655.73,7.094]
[1751265379476,0.26541282,656.22,655.73,2.811]
[1751265383276,0.26541282,656.22,655.63,3.724]
[1751265384282,3.8144389,656.16,655.63,3.724]
[1751265384782,3.8144389,656.12,655.63,3.724]
[1751265385177,3.8144389,656.13,655.63,3.724]
[1751265385882,3.8144389,656.06,655.63,3.724]
[1751265386377,3.8144389,656.09,655.63,3.724]
[1751265386881,3.8144389,656.13,655.63,3.724]
[1751265387377,5.3402144,656.4,655.63,3.724]
[1751265387378,3.8144389,656.15,655.63,3.724]
[1751265387883,3.8144389,656.13,655.63,3.724]
[1751265388480,3.8144389,656.14,655.63,3.724]
[1751265389378,3.8144389,656.13,655.63,3.724]
[1751265389978,3.8144389,656.18,655.63,3.724]
[1751265390481,3.8144389,656.19,655.63,3.724]
[1751265390985,0.26548369,656.06,655.63,3.724]
[1751265441915,0.26548369,656.06,655.63,0.9528517]
[1751265442119,0.26548369,656.06,655.58,4.347]
[1751265442419,3.8144389,655.93,655.58,4.347]
[1751265443418,3.8144389,655.91,655.58,4.347]
[1751265444018,3.8144389,655.94,655.58,4.347]
[1751265446021,3.8144389,655.96,655.58,4.347]
[1751265446523,3.8144389,655.97,655.58,4.347]
[1751265447019,3.8144389,656.0,655.58,4.347]
[1751265450928,3.8144389,656.02,655.58,4.347]
[1751265451324,0.26548369,656.06,655.58,4.347]